fUSD/lending_fUSD_20260406
["ID","MTS","AMOUNT","RATE_DAILY","PERIOD"]
[419925983,1775512240887,-1500.0,0.00011468,2]
[419925984,1775512240897,-27331.93099935,0.00011497,2]
[419925985,1775512240906,-26653.40585005,0.00011497,2]
[419925986,1775512240916,-4392.87,0.00011507,2]
[419925987,1775512240925,-200.0,0.0001153,2]
[419925988,1775512240935,-1037.12,0.00011535,2]
[419925989,1775512240944,-1240.0,0.00011637,2]
[419925990,1775512240954,-1161.75972511,0.0001166,2]
[419925991,1775512240964,-643.48874366,0.00011669,2]
[419925992,1775512240973,-160.0,0.00011707,2]
[419925993,1775512240982,-575.768894,0.00011707,2]
[419925994,1775512240992,-991.537789,0.00011707,2]
[419925995,1775512241001,-160.0,0.00011776,2]
[419925996,1775512241011,-182.775823,0.00011776,2]
[419925997,1775512241021,-205.551647,0.00011776,2]
[419925998,1775512241030,-1037.12,0.00011809,2]
[419925999,1775512241040,-32851.0916096,0.00011828,2]
[419926000,1775512241049,-3448.1415468,0.00011856,2]
[419926001,1775512241059,-4661.87253773,0.00011868,2]
[419926002,1775512241068,-160.0,0.00011883,2]
[419926003,1775512241078,-646.010733,0.00011883,2]
[419926004,1775512241087,-423.437112,0.00011883,2]
[419926005,1775512241096,-1132.021466,0.00011883,2]
[419926006,1775512241106,-160.0,0.00011894,2]
[419926007,1775512241115,-484.072528,0.00011894,2]
[419926008,1775512241126,-808.145056,0.00011894,2]
[419926009,1775512241135,-176.129432,0.00011894,2]
[419926010,1775512241145,-200.0,0.00012,2]
[419926011,1775512241154,-2000.0,0.00012016,2]
[419926012,1775512241164,-2000.0,0.00012016,2]
[419926013,1775512241174,-1377.452931,0.00012016,2]
[419926014,1775512241183,-1512.47134075,0.00012016,2]
[419926015,1775512241193,-200.0,0.00012078,2]
[419926016,1775512241202,-1037.12,0.00012083,2]
[419926017,1775512241212,-3311.19128346,0.00012089,2]
[419926018,1775512241223,-27331.93099935,0.00012126,2]
[419926019,1775512241233,-26653.40585005,0.00012126,2]
[419926020,1775512241243,-7330.0693319,0.00012137,2]
[419926021,1775512241252,-152.0,0.00012142,3]
[419926022,1775512241262,-1101.0126088,0.00012153,2]
[419926023,1775512241271,-446.78124736,0.0001226,2]
[419926024,1775512241280,-785.139401,0.00012292,2]
[419926025,1775512241290,-168.372,0.000123,2]
[419926026,1775512241299,-1037.1998952,0.00012357,2]
[419926027,1775512241309,-249.239759,0.00012365,2]
[419926028,1775512241319,-587.0,0.00012381,2]
[419926029,1775512241328,-2351.0,0.00012386,2]
[419926030,1775512241338,-152.0,0.00012399,4]
[419926031,1775512241347,-433.0,0.00012466,2]
[419926032,1775512241357,-192.471414,0.00012478,2]
[419926033,1775512241366,-880.923727,0.00012478,2]
[419926034,1775512241376,-660.098901,0.00012489,2]
[419926035,1775512241385,-245.6691197,0.00012535,2]
[419926036,1775512241395,-2500.0,0.00012564,2]
[419926037,1775512241405,-2500.0,0.00012564,2]
[419926038,1775512241414,-200.0,0.00012626,2]
[419926039,1775512241424,-152.0,0.00012657,5]
[419926040,1775512241433,-3448.1415468,0.00012665,2]
[419926041,1775512241443,-27331.93099935,0.00012755,2]
[419926042,1775512241453,-26653.40585005,0.00012755,2]
[419926043,1775512241462,-151.0,0.00012808,2]
[419926044,1775512241472,-152.0,0.00012914,6]
[419926045,1775512241481,-1400.0,0.00012958,2]
[419926046,1775512241491,-501.0,0.00013,2]
[419926047,1775512241500,-784.25699556,0.00013074,2]
[419926048,1775512241510,-334.8,0.00013083,2]
[419926049,1775512241519,-1834.26277974,0.00013112,2]
[419926050,1775512241528,-2507.06649389,0.00013112,2]
[419926051,1775512241539,-2863.19157105,0.00013124,2]
[419926052,1775512241548,-6260.93307362,0.00013124,2]
[419926053,1775512241558,-446.78124736,0.0001317,2]
[419926054,1775512241568,-152.0,0.00013171,7]
[419926056,1775512241578,-151.0,0.00013173,2]
[419926057,1775512241587,-205.91491422,0.00013174,2]
[419926058,1775512241596,-180.933305,0.00013379,2]
[419926059,1775512241606,-27331.93099935,0.00013384,2]
[419926060,1775512241616,-26653.40585005,0.00013384,2]
[419926061,1775512241626,-576.53932772,0.00013427,2]
[419926062,1775512241635,-152.0,0.00013428,8]
[419926063,1775512241645,-408.272489,0.00013463,2]
[419926064,1775512241654,-3448.1415468,0.00013474,2]
[419926065,1775512241664,-191.48825389,0.00013563,2]
[419926066,1775512241674,-188.9943,0.000136,2]
[419926067,1775512241684,-823.0,0.00013616,2]
[419926068,1775512241693,-343.5,0.00013623,2]
[419926069,1775512241703,-3292.0,0.00013624,2]
[419926070,1775512241712,-458.080338,0.00013666,2]
[419926071,1775512241722,-193.62,0.00013671,2]
[419926072,1775512241731,-343.251428,0.00013678,2]
[419926073,1775512241741,-152.0,0.00013685,9]
[419926074,1775512241750,-736.0,0.00013686,2]
[419926075,1775512241760,-500.0,0.00013698,2]
[419926076,1775512241769,-500.0,0.00013698,2]
[419926077,1775512241779,-500.0,0.00013698,2]
[419926078,1775512241789,-500.0,0.00013698,2]
[419926079,1775512241799,-500.0,0.00013698,2]
[419926080,1775512241808,-500.0,0.00013698,2]
[419926081,1775512241817,-500.0,0.00013698,2]
[419926082,1775512241827,-500.0,0.00013698,2]
[419926083,1775512241837,-500.0,0.00013698,2]
[419926084,1775512241847,-500.0,0.00013698,2]
[419926085,1775512241856,-500.0,0.00013698,2]
[419926086,1775512241866,-500.0,0.00013698,2]
[419926087,1775512241875,-500.0,0.00013698,2]
[419926088,1775512241885,-500.0,0.00013698,2]
[419926089,1775512241894,-500.0,0.00013698,2]
[419926090,1775512241904,-500.0,0.00013698,2]
[419926091,1775512241914,-500.0,0.00013698,2]
[419926092,1775512241924,-500.0,0.00013698,2]
[419926093,1775512241933,-500.0,0.00013698,2]
[419926094,1775512241943,-500.0,0.00013698,2]
[419926095,1775512241954,-500.0,0.00013698,2]
[419926096,1775512241963,-500.0,0.00013698,2]
[419926097,1775512241973,-500.0,0.00013698,2]
[419926098,1775512241982,-500.0,0.00013698,2]
[419926099,1775512241992,-500.0,0.00013698,2]
[419926100,1775512242001,-500.0,0.00013698,2]
[419926101,1775512242011,-500.0,0.00013698,2]
[419926102,1775512242020,-500.0,0.00013698,2]
[419926103,1775512242029,-500.0,0.00013698,2]
[419926104,1775512242039,-500.0,0.00013698,2]
[419926105,1775512242048,-500.0,0.00013698,2]
[419926106,1775512242058,-500.0,0.00013698,2]
[419926107,1775512242067,-500.0,0.00013698,2]
[419926108,1775512242076,-500.0,0.00013698,2]
[419926109,1775512242086,-500.0,0.00013698,2]
[419926110,1775512242095,-500.0,0.00013698,2]
[419926111,1775512242104,-500.0,0.00013698,2]
[419926112,1775512242113,-500.0,0.00013698,2]
[419926113,1775512242123,-500.0,0.00013698,2]
[419926114,1775512242133,-500.0,0.00013698,2]
[419926115,1775512242143,-500.0,0.00013698,2]
[419926116,1775512242152,-500.0,0.00013698,2]
[419926117,1775512242161,-500.0,0.00013698,2]
[419926118,1775512242171,-500.0,0.00013698,2]
[419926119,1775512242180,-502.76097898,0.00013698,2]
[419926120,1775512242190,-500.0,0.00013698,2]
[419926121,1775512242200,-500.0,0.00013698,2]
[419926122,1775512242210,-500.0,0.00013698,2]
[419926123,1775512242220,-500.0,0.00013698,2]
[419926124,1775512242230,-500.0,0.00013698,2]
[419926125,1775512242239,-500.0,0.00013698,2]
[419926126,1775512242249,-500.0,0.00013698,2]
[419926127,1775512242259,-500.0,0.00013698,2]
[419926128,1775512242268,-500.0,0.00013698,2]
[419926129,1775512242278,-500.0,0.00013698,2]
[419926130,1775512242287,-500.0,0.00013698,2]
[419926131,1775512242296,-500.0,0.00013698,2]
[419926132,1775512242306,-500.0,0.00013698,2]
[419926133,1775512242316,-507.01970036,0.00013698,2]
[419926134,1775512242325,-500.0,0.00013698,2]
[419926135,1775512242334,-500.0,0.00013698,2]
[419926136,1775512242343,-500.0,0.00013698,2]
[419926137,1775512242352,-500.0,0.00013698,2]
[419926138,1775512242362,-500.0,0.00013698,2]
[419926139,1775512242371,-500.0,0.00013698,2]
[419926140,1775512242381,-500.0,0.00013698,2]
[419926141,1775512242390,-500.0,0.00013698,2]
[419926142,1775512242400,-500.0,0.00013698,2]
[419926143,1775512242409,-500.0,0.00013698,2]
[419926144,1775512242418,-500.0,0.00013698,2]
[419926145,1775512242427,-500.0,0.00013698,2]
[419926146,1775512242437,-500.0,0.00013698,2]
[419926147,1775512242446,-500.0,0.00013698,2]
[419926148,1775512242456,-500.0,0.00013698,2]
[419926149,1775512242465,-500.0,0.00013698,2]
[419926150,1775512242475,-500.0,0.00013698,2]
[419926151,1775512242484,-500.0,0.00013698,2]
[419926152,1775512242494,-500.0,0.00013698,2]
[419926153,1775512242504,-500.0,0.00013698,2]
[419926154,1775512242513,-500.0,0.00013698,2]
[419926155,1775512242522,-500.0,0.00013698,2]
[419926156,1775512242532,-500.0,0.00013698,2]
[419926157,1775512242542,-500.0,0.00013698,2]
[419926158,1775512242551,-500.0,0.00013698,2]
[419926159,1775512242561,-500.0,0.00013698,2]
[419926160,1775512242570,-500.0,0.00013698,2]
[419926161,1775512242579,-500.0,0.00013698,2]
[419926162,1775512242589,-500.0,0.00013698,2]
[419926163,1775512242598,-500.0,0.00013698,2]
[419926164,1775512242607,-500.0,0.00013698,2]
[419926165,1775512242616,-629.61248699,0.00013698,2]
[419926166,1775512242626,-500.0,0.00013698,2]
[419926167,1775512242635,-500.0,0.00013698,2]
[419926168,1775512242645,-500.0,0.00013698,2]
[419926169,1775512242654,-500.0,0.00013698,2]
[419926170,1775512242664,-500.0,0.00013698,2]
[419926171,1775512242673,-189.82902191,0.00013698,2]
[419926172,1775512242682,-500.0,0.00013698,2]
[419926173,1775512242691,-500.0,0.00013698,2]
[419926174,1775512242701,-500.0,0.00013698,2]
[419926175,1775512242710,-500.0,0.00013698,2]
[419926176,1775512242720,-500.0,0.00013698,2]
[419926177,1775512242729,-500.0,0.00013698,2]
[419926178,1775512242739,-500.0,0.00013698,2]
[419926179,1775512242748,-500.0,0.00013698,2]
[419926180,1775512242757,-609.59532014,0.00013698,2]
[419926181,1775512242767,-500.0,0.00013698,2]
[419926182,1775512242777,-500.0,0.00013698,2]
[419926183,1775512242786,-500.0,0.00013698,2]
[419926184,1775512242796,-500.0,0.00013698,2]
[419926185,1775512242805,-500.0,0.00013698,2]
[419926186,1775512242814,-500.0,0.00013698,2]
[419926187,1775512242823,-500.0,0.00013698,2]
[419926188,1775512242833,-500.0,0.00013698,2]
[419926189,1775512242842,-500.0,0.00013698,2]
[419926190,1775512242851,-500.0,0.00013698,2]
[419926191,1775512242861,-500.0,0.00013698,2]
[419926192,1775512242870,-500.0,0.00013698,2]
[419926193,1775512242880,-500.0,0.00013698,2]
[419926194,1775512242889,-500.0,0.00013698,2]
[419926195,1775512242898,-500.0,0.00013698,2]
[419926196,1775512242907,-500.0,0.00013698,2]
[419926197,1775512242916,-500.0,0.00013698,2]
[419926198,1775512242926,-500.0,0.00013698,2]
[419926199,1775512242935,-500.0,0.00013698,2]
[419926200,1775512242944,-500.0,0.00013698,2]
[419926201,1775512242954,-500.0,0.00013698,2]
[419926202,1775512242963,-500.0,0.00013698,2]
[419926203,1775512242973,-500.0,0.00013698,2]
[419926204,1775512242982,-500.0,0.00013698,2]
[419926205,1775512242992,-500.0,0.00013698,2]
[419926206,1775512243001,-500.0,0.00013698,2]
[419926207,1775512243012,-500.0,0.00013698,2]
[419926208,1775512243022,-500.0,0.00013698,2]
[419926209,1775512243031,-500.0,0.00013698,2]
[419926210,1775512243041,-500.0,0.00013698,2]
[419926211,1775512243051,-256.00425953,0.00013698,2]
[419926212,1775512243062,-500.0,0.00013698,2]
[419926213,1775512243072,-500.0,0.00013698,2]
[419926214,1775512243081,-500.0,0.00013698,2]
[419926215,1775512243092,-500.0,0.00013698,2]
[419926216,1775512243101,-500.0,0.00013698,2]
[419926217,1775512243111,-500.0,0.00013698,2]
[419926218,1775512243121,-500.0,0.00013698,2]
[419926219,1775512243131,-500.0,0.00013698,2]
[419926220,1775512243141,-500.0,0.00013698,2]
[419926223,1775512243151,-500.0,0.00013698,2]
[419926226,1775512243160,-500.0,0.00013698,2]
[419926229,1775512243171,-500.0,0.00013698,2]
[419926230,1775512243180,-500.0,0.00013698,2]
[419926231,1775512243190,-500.0,0.00013698,2]
[419926233,1775512243201,-500.0,0.00013698,2]
[419926234,1775512243211,-500.0,0.00013698,2]
[419926235,1775512243221,-500.0,0.00013698,2]
[419926236,1775512243231,-348.586408,0.00013698,2]
[419926237,1775512243241,-500.0,0.00013698,2]
[419926238,1775512243251,-500.0,0.00013698,2]
[419926239,1775512243261,-500.0,0.00013698,2]
[419926240,1775512243271,-500.0,0.00013698,2]
[419926241,1775512243281,-500.0,0.00013698,2]
[419926242,1775512243292,-500.0,0.00013698,2]
[419926244,1775512243680,-500.0,0.00013698,2]
[419926245,1775512243690,-500.0,0.00013698,2]
[419926246,1775512243700,-597.32595487,0.00013698,2]
[419926247,1775512243710,-500.0,0.00013698,2]
[419926248,1775512243719,-500.0,0.00013698,2]
[419926249,1775512243729,-500.0,0.00013698,2]
[419926250,1775512243738,-500.0,0.00013698,2]
[419926251,1775512243748,-500.0,0.00013698,2]
[419926252,1775512243758,-500.0,0.00013698,2]
[419926253,1775512243767,-500.0,0.00013698,2]
[419926254,1775512243777,-508.61892667,0.00013698,2]
[419926255,1775512243787,-500.0,0.00013698,2]
[419926256,1775512243796,-500.0,0.00013698,2]
[419926257,1775512243806,-500.0,0.00013698,2]
[419926258,1775512243816,-500.0,0.00013698,2]
[419926259,1775512243826,-500.0,0.00013698,2]
[419926260,1775512243836,-500.0,0.00013698,2]
[419926262,1775512243846,-500.0,0.00013698,2]
[419926263,1775512243856,-500.0,0.00013698,2]
[419926264,1775512243865,-500.0,0.00013698,2]
[419926265,1775512243875,-500.0,0.00013698,2]
[419926266,1775512243885,-469.05755082,0.00013698,2]
[419926267,1775512243895,-500.0,0.00013698,2]
[419926268,1775512243904,-500.0,0.00013698,2]
[419926269,1775512243914,-500.0,0.00013698,2]
[419926270,1775512243923,-500.0,0.00013698,2]
[419926271,1775512243933,-500.0,0.00013698,2]
[419926272,1775512243943,-500.0,0.00013698,2]
[419926273,1775512243954,-500.0,0.00013698,2]
[419926274,1775512243964,-500.0,0.00013698,2]
[419926275,1775512243974,-500.0,0.00013698,2]
[419926276,1775512243984,-500.0,0.00013698,2]
[419926277,1775512243996,-500.0,0.00013698,2]
[419926278,1775512244006,-500.0,0.00013698,2]
[419926279,1775512244016,-500.0,0.00013698,2]
[419926280,1775512244025,-500.0,0.00013698,2]
[419926281,1775512244035,-559.50723655,0.00013698,2]
[419926282,1775512244045,-500.0,0.00013698,2]
[419926283,1775512244055,-500.0,0.00013698,2]
[419926284,1775512244065,-500.0,0.00013698,2]
[419926285,1775512244074,-500.0,0.00013698,2]
[419926286,1775512244084,-500.0,0.00013698,2]
[419926287,1775512244093,-500.0,0.00013698,2]
[419926288,1775512244103,-500.0,0.00013698,2]
[419926289,1775512244112,-500.0,0.00013698,2]
[419926290,1775512244122,-500.0,0.00013698,2]
[419926291,1775512244131,-500.0,0.00013698,2]
[419926292,1775512244141,-500.0,0.00013698,2]
[419926293,1775512244151,-500.0,0.00013698,2]
[419926294,1775512244160,-500.0,0.00013698,2]
[419926295,1775512244170,-500.0,0.00013698,2]
[419926296,1775512244180,-500.0,0.00013698,2]
[419926297,1775512244189,-500.0,0.00013698,2]
[419926298,1775512244199,-500.0,0.00013698,2]
[419926299,1775512244209,-500.0,0.00013698,2]
[419926300,1775512244219,-500.0,0.00013698,2]
[419926301,1775512244228,-500.0,0.00013698,2]
[419926302,1775512244237,-500.0,0.00013698,2]
[419926303,1775512244247,-500.0,0.00013698,2]
[419926304,1775512244256,-500.0,0.00013698,2]
[419926305,1775512244266,-547.42518034,0.00013698,2]
[419926306,1775512244275,-502.13748026,0.00013698,2]
[419926307,1775512244285,-500.0,0.00013698,2]
[419926308,1775512244294,-500.0,0.00013698,2]
[419926309,1775512244304,-500.0,0.00013698,2]
[419926310,1775512244313,-500.0,0.00013698,2]
[419926311,1775512244322,-500.0,0.00013698,2]
[419926312,1775512244332,-500.0,0.00013698,2]
[419926314,1775512244342,-500.0,0.00013698,2]
[419926315,1775512244352,-500.0,0.00013698,2]
[419926316,1775512244362,-500.0,0.00013698,2]
[419926317,1775512244372,-500.0,0.00013698,2]
[419926318,1775512244383,-500.0,0.00013698,2]
[419926319,1775512244393,-500.0,0.00013698,2]
[419926320,1775512244403,-500.0,0.00013698,2]
[419926321,1775512244413,-500.0,0.00013698,2]
[419926322,1775512244422,-500.0,0.00013698,2]
[419926323,1775512244432,-500.0,0.00013698,2]
[419926324,1775512244442,-500.0,0.00013698,2]
[419926325,1775512244452,-500.0,0.00013698,2]
[419926326,1775512244463,-500.0,0.00013698,2]
[419926327,1775512244473,-500.0,0.00013698,2]
[419926328,1775512244482,-500.0,0.00013698,2]
[419926329,1775512244491,-500.0,0.00013698,2]
[419926330,1775512244501,-180.22082836,0.00013699,2]
[419926331,1775512244511,-150.0,0.00013699,2]
[419926332,1775512244521,-150.0,0.00013699,2]
[419926333,1775512244531,-150.0,0.00013699,2]
[419926334,1775512244540,-150.0,0.00013699,2]
[419926335,1775512244550,-150.0,0.00013699,2]
[419926336,1775512244560,-150.0,0.00013699,2]
[419926337,1775512244570,-150.0,0.00013699,2]
[419926338,1775512244580,-166.66,0.00013699,2]
[419926339,1775512244591,-1741.12,0.00013699,2]
[419926340,1775512244600,-158.36,0.00013699,2]
[419926341,1775512244610,-500.0,0.00013699,2]
[419926342,1775512244620,-500.90594274,0.00013699,2]
[419926343,1775512244630,-500.0,0.00013699,2]
[419926344,1775512244639,-501.87452311,0.00013699,2]
[419926345,1775512244649,-474.500506,0.00013699,2]
[419926346,1775512244660,-500.0,0.00013699,2]
[419926347,1775512244670,-288.13754842,0.00013699,2]
[419926348,1775512244680,-500.48595489,0.00013699,2]
[419926349,1775512244690,-561.18350506,0.00013699,2]
[419926350,1775512244701,-503.55252603,0.00013699,2]
[419926351,1775512244710,-500.0,0.00013699,2]
[419926352,1775512244720,-500.0,0.00013699,2]
[419926353,1775512244729,-159.81870043,0.00013699,2]
[419926354,1775512244739,-429.76417009,0.00013699,2]
[419926355,1775512244749,-164.37135814,0.00013699,2]
[419926356,1775512244759,-500.0,0.00013699,2]
[419926357,1775512244768,-343.11080515,0.00013699,2]
[419926358,1775512244778,-163.81595005,0.00013699,2]
[419926359,1775512244788,-500.0,0.00013699,2]
[419926360,1775512244798,-500.0,0.00013699,2]
[419926361,1775512244808,-500.0,0.00013699,2]
[419926362,1775512244818,-352.48557695,0.00013699,2]
[419926363,1775512244828,-500.0,0.00013699,2]
[419926364,1775512244838,-212.97420605,0.00013699,2]
[419926365,1775512244847,-191.49,0.00013715,2]
[419926366,1775512244857,-166.66,0.00013836,2]
[419926367,1775512244867,-501.0,0.00013918,2]
[419926368,1775512244877,-152.0,0.00013943,10]
[419926369,1775512244887,-200.0,0.00013965,2]
[419926370,1775512244896,-2933.8,0.00013965,2]
[419926371,1775512244906,-2933.8,0.00013965,2]
[419926372,1775512244915,-150.0,0.00013973,2]
[419926373,1775512244924,-150.0,0.00013973,2]
[419926374,1775512244934,-150.0,0.00013973,2]
[419926375,1775512244943,-150.0,0.00013973,2]
[419926376,1775512244953,-150.0,0.00013973,2]
[419926377,1775512244963,-166.66,0.00013973,2]
[419926378,1775512244972,-200.0,0.00014,2]
[419926379,1775512244982,-855.85192254,0.00014006,2]
[419926380,1775512244991,-27331.93099935,0.00014013,2]
[419926381,1775512245001,-26653.40585005,0.00014013,2]
[419926382,1775512245011,-155.05158054,0.00014017,2]
[419926383,1775512245020,-446.78124736,0.0001408,2]
[419926384,1775512245030,-1300.0,0.00014082,2]
[419926385,1775512245039,-3000.0,0.00014082,2]
[419926386,1775512245048,-150.0,0.00014091,2]
[419926387,1775512245058,-166.66,0.0001411,2]
[419926388,1775512245068,-500.0,0.00014184,2]
[419926389,1775512245078,-500.0,0.00014184,2]
[419926390,1775512245087,-500.0,0.00014184,2]
[419926391,1775512245097,-503.57594394,0.00014184,2]
[419926392,1775512245107,-500.0,0.00014184,2]
[419926393,1775512245117,-500.0,0.00014184,2]
[419926394,1775512245126,-500.0,0.00014184,2]
[419926395,1775512245136,-4426.03,0.00014185,2]
[419926396,1775512245146,-152.0,0.000142,11]
[419926397,1775512245155,-166.66,0.00014247,2]
[419926398,1775512245165,-150.0,0.00014247,2]
[419926399,1775512245175,-150.0,0.00014247,2]
[419926400,1775512245185,-150.0,0.00014247,2]
[419926401,1775512245195,-150.0,0.00014247,2]
[419926402,1775512245205,-500.96410238,0.00014247,2]
[419926403,1775512245215,-1000.0,0.00014247,2]
[419926404,1775512245225,-1000.0,0.00014247,2]
[419926405,1775512245234,-500.0,0.00014247,2]
[419926406,1775512245244,-501.68959435,0.00014247,2]
[419926407,1775512245253,-1000.0,0.00014247,2]
[419926408,1775512245263,-1110.42839416,0.00014247,2]
[419926409,1775512245273,-3448.1415468,0.00014283,2]
[419926410,1775512245282,-160.0,0.00014308,2]
[419926411,1775512245292,-334.8,0.00014309,2]
[419926412,1775512245302,-166.66,0.00014384,2]
[419926413,1775512245311,-1573.0,0.000144,2]
[419926414,1775512245321,-2811.0,0.000144,2]
[419926415,1775512245331,-1573.0,0.000144,2]
[419926416,1775512245340,-2811.0,0.000144,2]
[419926417,1775512245350,-1573.0,0.000144,2]
[419926418,1775512245360,-1573.0,0.000144,2]
[419926419,1775512245370,-2811.0,0.000144,2]
[419926420,1775512245380,-351.0,0.000144,4]
[419926421,1775512245390,-661.30319743,0.000144,4]
[419926422,1775512245399,-160.0,0.00014401,2]
[419926423,1775512245409,-985.59,0.00014429,2]
[419926424,1775512245418,-193.62,0.00014431,2]
[419926425,1775512245428,-152.0,0.00014457,12]
[419926426,1775512245437,-785.79,0.00014484,2]
[419926427,1775512245447,-150.52,0.00014485,17]
[419926428,1775512245456,-165.06,0.00014485,15]
[419926429,1775512245465,-165.06,0.00014485,21]
[419926430,1775512245474,-166.87,0.00014485,16]
[419926431,1775512245483,-391.03824713,0.00014586,2]
[419926432,1775512245493,-27331.93099935,0.00014642,2]
[419926433,1775512245502,-26653.40585005,0.00014642,2]
[419926434,1775512245512,-500.0,0.00014685,2]
[419926435,1775512245521,-500.0,0.00014686,2]
[419926436,1775512245531,-500.0,0.00014686,2]
[419926437,1775512245540,-500.0,0.00014686,2]
[419926438,1775512245549,-500.0,0.00014686,2]
[419926439,1775512245558,-618.35884444,0.00014686,2]
[419926440,1775512245568,-500.0,0.00014686,2]
[419926441,1775512245577,-500.0,0.00014686,2]
[419926442,1775512245586,-985.59,0.00014703,2]
[419926443,1775512245596,-152.0,0.00014714,13]
[419926444,1775512245605,-30000.0,0.00014718,2]
[419926445,1775512245615,-1573.0,0.0001472,2]
[419926446,1775512245624,-1573.0,0.0001472,2]
[419926447,1775512245633,-2811.0,0.0001472,2]
[419926448,1775512245642,-1573.0,0.0001472,2]
[419926449,1775512245651,-1165.0,0.0001472,2]
[419926450,1775512245661,-785.79,0.00014758,2]
[419926451,1775512245670,-749.78250185,0.0001479,2]
[419926452,1775512245680,-1500.0,0.00014795,2]
[419926453,1775512245689,-1500.0,0.00014795,2]
[419926454,1775512245699,-503.28349871,0.00014795,2]
[419926455,1775512245709,-501.0,0.00014836,3]
[419926456,1775512245718,-500.0,0.00014865,2]
[419926457,1775512245728,-500.0,0.00014865,2]
[419926458,1775512245737,-500.0,0.00014865,2]
[419926459,1775512245747,-500.0,0.00014865,2]
[419926460,1775512245756,-500.0,0.00014865,2]
[419926461,1775512245769,-500.0,0.00014865,2]
[419926462,1775512245778,-500.0,0.00014865,2]
[419926463,1775512245788,-500.0,0.00014865,2]
[419926464,1775512245797,-500.0,0.00014865,2]
[419926465,1775512245806,-361.0,0.00014865,2]
[419926466,1775512245816,-150.0,0.00014923,2]
[419926467,1775512245825,-152.0,0.00014971,14]
[419926468,1775512245835,-1152.0,0.00014974,2]
[419926469,1775512245844,-985.59,0.00014977,2]
[419926470,1775512245853,-4609.0,0.00014987,2]
[419926471,1775512245862,-446.78124736,0.0001499,2]
[419926472,1775512245872,-212.1424,0.00015,2]
[419926473,1775512245881,-10000.0,0.00015,15]
[419926474,1775512245891,-858.0,0.00015,15]
[419926475,1775512245900,-1700.0,0.00015018,2]
[419926476,1775512245910,-1700.0,0.00015018,2]
[419926477,1775512245919,-1700.0,0.00015018,2]
[419926478,1775512245929,-1700.0,0.00015018,2]
[419926479,1775512245938,-1700.0,0.00015018,2]
[419926480,1775512245947,-1700.0,0.00015018,2]
[419926481,1775512245956,-1700.0,0.00015018,2]
[419926482,1775512245966,-1700.0,0.00015018,2]
[419926483,1775512246101,-1700.0,0.00015018,2]
[419926484,1775512246110,-1482.0,0.00015018,2]
[419926485,1775512246119,-155.05158054,0.00015019,2]
[419926486,1775512246128,-1252.0,0.0001502,2]
[419926487,1775512246138,-785.79,0.00015032,2]
[419926489,1775512246147,-1573.0,0.0001504,2]
[419926491,1775512246156,-162.0,0.0001504,2]
[419926492,1775512246164,-2811.0,0.0001504,2]
[419926493,1775512246173,-500.0,0.00015055,2]
[419926494,1775512246183,-338.52,0.00015057,2]
[419926495,1775512246192,-2000.0,0.00015058,2]